Cogmind - Beta 16 *** ADVENTURER MODE // 2025.12.21 @ 19:00:38 Player: Gentle Jesus Result: Self-destructed Performance ------------- Evolutions (6) 3000 Regions Visited (19) 3800 Robots Destroyed (165) 825 Value Destroyed (7208) 7208 Prototype IDs (38) 760 Alien Tech Used (1) 200 Bonus (2868) 2868 TOTAL SCORE: 18661 Bonus ------- High Alert Combat Kills 159 Follower Combat Kills 420 Aligned with FarCom 300 Met Imprinter 300 Destroyed Z-Imprinter 1000 Triggered Deep Caves Wall 500 Met R17 at Cetus 500 Friendly Fire -311 Cogmind --------- Core Integrity 1013/1150 Matter 9/300 Energy 100/100 System Corruption 0% Temperature Cool (0) Movement Core (200) Ox3 Location -4/Factory Parts ------- > --- POWER (2) -------- (None) > --- PROPULSION (6) --- (None) > --- UTILITY (9) ------ Medium Storage Unit Structural Scanner Improved Signal Interpreter Improved Target Analyzer > --- WEAPON (3) ------- (None) > --- INVENTORY (10) --- Combat Airjet Antigrav System Antigrav System Linear Gravjet Linear Gravjet Improved Antigrav System Improved Antigrav System Large Matter Pod (0) Scatter Rocket Array GAL Module Peak State ------------ > --- POWER ------------ Particle Reactor Quantum Reactor > --- PROPULSION ------- Carbon-fiber Leg Carbon-fiber Leg Carbon-fiber Leg Carbon-fiber Leg Carbon-fiber Leg Carbon-fiber Leg > --- UTILITY ---------- Advanced Heat Sink Medium Storage Unit Improved Signal Interpreter Improved Target Analyzer Centrium Medium Armor Plating Medium Reflective Plating Advanced System Shield > --- WEAPON ----------- Firepult Advanced KE Penetrator > --- INVENTORY -------- Micro Fission Core Combat Airjet Combat Airjet Antigrav System Linear Gravjet Advanced Heat Sink Railgun Precision Rocket Launcher Scatter Rocket Array GAL Module [Rating: 102] Favorites ----------- Power Light Angular Momentum Engine Engine Light Angular Momentum Engine Power Core Neutrino Core Reactor Particle Reactor Propulsion Carbon-fiber Leg Treads Medium Treads Leg Carbon-fiber Leg Wheel Compact Wheel Hover Unit Combat Airjet Flight Unit Flight Unit Utility Improved Signal Interpreter Device Improved Sensor Array Storage Medium Storage Unit Processor Improved Signal Interpreter Hackware Advanced System Shield Protection Propulsion Shielding Weapon Heavy Flail Energy Gun Zionite Laser-S Energy Cannon Firepult Ballistic Gun KE Penetrator Ballistic Cannon Bore Cannon Launcher Missile Launcher Special Weapon Improved Remote Datajack Impact Weapon Heavy Flail Piercing Weapon Spear Build | -11 -10 -9 -9 -9 -8 -8 -7 -7 -7 -7 -7 -6 -6 -5 -5 -5 -5 -5 -4 ------- Run | Yrd Mat Mat Min Exi Min Mat Fac Low Low Zio Dee Pro Fac Fac Ext Cet Arc Hub Fac Slots Evolved 12 | . . 2 . . . 2 2 . . . . . 2 2 . . . . 2 Power 1 | . . . . . . . . . . . . . 1 . . . . . . Propulsion 4 | . . 2 . . . . 1 . . . . . . 1 . . . . . Utility 7 | . . . . . . 2 1 . . . . . 1 1 . . . . 2 Weapon . | . . . . . . . . . . . . . . . . . . . . Parts Attached 139 | 7 4 8 3 . . 6 14 6 3 4 10 1 5 8 32 5 3 14 6 Power 18 | 1 1 1 . . . . 2 . 1 . 2 . 1 1 3 2 2 . 1 Engine 8 | 1 . 1 . . . . 2 . 1 . 1 . . 1 1 . . . . Core 4 | . 1 . . . . . . . . . . . . . 2 1 . . . Reactor 6 | . . . . . . . . . . . 1 . 1 . . 1 2 . 1 Propulsion 50 | 2 . 6 3 . . 1 5 . . 1 3 . 1 1 17 . . 10 . Treads 5 | . . . . . . . 5 . . . . . . . . . . . . Leg 31 | 2 . 2 . . . . . . . . . . . . 17 . . 10 . Wheel 1 | . . . . . . . . . . . . . . 1 . . . . . Hover 9 | . . . 3 . . 1 . . . 1 3 . 1 . . . . . . Flight 4 | . . 4 . . . . . . . . . . . . . . . . . Utility 44 | 2 1 1 . . . 4 5 4 . 1 5 1 2 2 9 2 1 2 2 Device 19 | 1 . 1 . . . 1 2 3 . 1 1 . 1 . 3 . 1 2 2 Storage 4 | 1 . . . . . . 1 . . . . . 1 . 1 . . . . Processor 4 | . . . . . . 2 . 1 . . . . . . 1 . . . . Hackware 4 | . . . . . . . . . . . . . . 2 2 . . . . Protection 13 | . 1 . . . . 1 2 . . . 4 1 . . 2 2 . . . Artifact . | . . . . . . . . . . . . . . . . . . . . Weapon 27 | 2 2 . . . . 1 2 2 2 2 . . 1 4 3 1 . 2 3 Energy Gun 7 | 2 1 . . . . . 1 . . . . . . 1 . . . . 2 Energy Cannon 3 | . . . . . . . 1 1 . . . . . 1 . . . . . Ballistic Gun 4 | . . . . . . . . . . . . . . . 1 1 . 2 . Ballistic Cannon 2 | . . . . . . . . . 1 . . . . . 1 . . . . Launcher 4 | . . . . . . . . 1 1 . . . 1 1 . . . . . Special Weapon 3 | . . . . . . . . . . 2 . . . . 1 . . . . Impact Weapon 3 | . 1 . . . . 1 . . . . . . . . . . . . 1 Slashing Weapon . | . . . . . . . . . . . . . . . . . . . . Piercing Weapon 1 | . . . . . . . . . . . . . . 1 . . . . . Special Melee Weapon . | . . . . . . . . . . . . . . . . . . . . Unidentified Prototypes 16 | . . . . . . . 1 1 . 2 5 1 2 2 . 2 . . . Corrupted Parts 3 | . . . . . . . 2 . . . . . 1 . . . . . . System Corruption 25 | . . . . . . . 14 . . . . . 11 . . . . . . Parts Lost 63 | . 3 . . . 1 . 4 6 4 . 11 1 5 . 12 2 . 11 3 Power 11 | . 1 . . . . . 1 . 1 . 1 . 2 . 2 1 . 1 1 Propulsion 25 | . . . . . . . . 4 1 . 5 1 . . 7 1 . 6 . Utility 20 | . 1 . . . . . 3 2 1 . 4 . 3 . 1 . . 4 1 Weapon 7 | . 1 . . . 1 . . . 1 . 1 . . . 2 . . . 1 Highest Loss Streak 4 | . 3 . . . 1 . 2 4 3 . 3 1 2 . 2 2 . 3 3 To Critical Strikes . | . . . . . . . . . . . . . . . . . . . . Average Backups 7 | 1 4 6 6 7 7 5 10 11 11 3 2 2 2 4 8 8 9 8 8 Power . | . 1 . . . . . . 2 2 1 . 1 . . . 1 1 1 . Propulsion 2 | . 1 . 1 1 . . 2 4 3 1 . . . . 4 4 4 4 5 Utility 1 | . 1 5 5 5 5 3 3 2 . . . . . . . . 1 1 1 Weapon 2 | . . . . 1 2 2 3 3 3 1 . 1 2 3 2 3 3 1 1 Tool/Special . | . . . . . . . . . . . . . . . . . . . . Unused Backups 17 | . . . . 2 . 1 . . 1 . 1 . . . 2 . 3 . 7 Power 4 | . . . . . . . . . 1 . 1 . . . 2 . . . . Propulsion 8 | . . . . 2 . . . . . . . . . . . . . . 6 Utility 2 | . . . . . . . . . . . . . . . . . 1 . 1 Weapon 3 | . . . . . . 1 . . . . . . . . . . 2 . . Tool/Special . | . . . . . . . . . . . . . . . . . . . . Average Slot Usage (%) 77 | . 91 78 95 88 84 84 89 72 52 79 86 60 48 47 82 92 94 85 51 Engine 4 | . 3 4 11 11 11 9 6 7 3 7 1 . . 4 4 3 . . . Core 1 | . 5 . . . . . . . . . . . . . 3 5 2 . . Reactor 1 | . . . . . . . . . . . 5 7 2 . . 1 7 9 3 Treads 4 | . . . . . . . 22 22 6 . . . . . . . . . . Leg 10 | . 28 15 . . . . . . . . . . . . 23 33 33 28 16 Hover 8 | . . . 9 33 33 30 8 . 1 26 30 17 12 9 . . . . . Device 10 | . 7 . 11 11 11 9 9 13 13 16 14 7 9 5 8 5 5 7 9 Storage 5 | . 14 11 11 11 11 9 7 7 6 . . . 3 5 5 5 5 5 5 Processor 8 | . . . . . . 8 7 14 14 14 10 7 6 5 5 11 11 11 10 Hackware 3 | . . . . . . . . . . . . . . 6 13 5 5 3 . Protection 4 | . 3 11 . . . 9 11 . . . 8 13 6 . . 9 11 6 . Energy Gun 2 | . 24 11 11 11 7 . 2 . . . . . . 4 1 . . . 2 Energy Cannon 2 | . . . . . . . 3 1 . . 5 . . . 3 5 5 . . Ballistic Gun 2 | . . . . . . . . . . . . . . . 2 5 5 11 3 Launcher 1 | . . . . . . . . 2 1 8 1 . . . . . . 1 . Impact Weapon 3 | . 3 11 11 11 11 9 7 1 . 4 7 7 6 . . . . . 1 Peak Build Rating 102 | 7 9 9 21 22 22 33 43 56 38 57 85 72 58 55 89 99 102 102 76 Average Rating 54 | 5 7 7 12 21 21 27 38 34 28 45 73 52 37 36 76 92 100 83 46 On Entrance 41 | . 7 7 9 21 22 21 33 40 27 38 57 61 49 24 49 87 99 102 74 Avg Prop Armor Cover (%) 10 | . . . . . . . . 6 . . . . . 11 9 . . . . Naked Turns . | . . . . . . . . . . . . . . . . . . . . Heaviest Build 104 | 12 14 13 13 13 13 13 104 101 98 31 39 37 28 27 69 78 91 91 49 Greatest Support 124 | 20 20 40 36 36 36 44 124 124 34 42 68 39 26 26 95 90 90 106 106 Greatest Overweight (x) 4 | . . 3 1 . . . 3 3 3 . 1 . 1 1 2 . 1 4 3 Average Overweight (x) . | . . . . . . . . 1 2 . . . . . . . . . 1 Largest Inventory Capacity 25 | 8 8 8 8 8 8 8 25 25 25 5 5 5 10 10 10 10 10 10 10 Average Capacity 11 | 7 8 8 8 8 8 8 20 25 22 5 5 5 8 10 10 10 10 10 10 Most Carried 14 | 3 8 7 8 8 8 8 13 14 13 5 5 5 5 7 10 10 10 10 10 Average Carried 8 | 1 5 5 7 7 8 6 11 12 12 4 4 4 4 6 9 9 10 9 9 Final Capacity 25 | 8 8 8 8 8 8 8 25 25 5 5 5 5 10 10 10 10 10 10 10 Final Carried 13 | 2 8 6 8 8 8 8 13 13 5 5 5 5 5 7 10 10 10 10 10 Class Distribution -------------------- 29% | Mutant 12% | Hacker-Skirmisher 12% | Scavenger-Mutant 9% | Scavenger-Skirmisher 7% | Scout 6% | Assassin 6% | Hacker-Assassin 4% | Scavenger-Tank 3% | Scavenger-Assassin Dominant Class ---------------- Mutant | -10/Materials Mutant | -9/Materials Sprinter | -9/Mines Mutant | -9/Exiles Scout | -8/Mines Scout | -8/Materials Assassin | -7/Factory Mutant | -7/Lower Caves Mutant | -7/Lower Caves Mutant | -7/Zion Mutant | -7/Deep Caves Scavenger-Mutant | -6/Proximity Caves Scavenger-Scout | -6/Factory Hacker-Mutant | -5/Factory Hacker-Skirmisher | -5/Extension Scavenger-Tank | -5/Cetus Scavenger-Tank | -5/Archives Scavenger-Mutant | -5/Hub_04(d) Scavenger-Skirmisher | -4/Factory Resources | -11 -10 -9 -9 -9 -8 -8 -7 -7 -7 -7 -7 -6 -6 -5 -5 -5 -5 -5 -4 ----------- Run | Yrd Mat Mat Min Exi Min Mat Fac Low Low Zio Dee Pro Fac Fac Ext Cet Arc Hub Fac Matter Collected 3545 | 227 78 . 110 . . 43 189 160 285 82 301 20 71 22 772 79 84 935 87 Remotely . | . . . . . . . . . . . . . . . . . . . . Salvage Created 8330 | 22 428 . 80 . 83 94 449 98 78 . 1045 178 610 22 2810 590 342 1285 116 Parts 250 | 4 31 . 3 . 4 2 15 6 3 . 18 4 9 . 61 14 12 60 4 Haulers Intercepted 5 | . 1 . . . . 1 . . . . . . . . 2 . . 1 . Recyclers Shooed 2 | . . . . . . . . . . . . . 1 . 1 . . . . Parts Field Recycled . | . . . . . . . . . . . . . . . . . . . . Retrieved Matter . | . . . . . . . . . . . . . . . . . . . . Parts Self-Destructed 17 | . . . . . . . . 12 3 1 . 1 . . . . . . . Prevented 3 | . . . . . . . . . . . . 3 . . . . . . . Parts Restored . | . . . . . . . . . . . . . . . . . . . . Kills | -11 -10 -9 -9 -9 -8 -8 -7 -7 -7 -7 -7 -6 -6 -5 -5 -5 -5 -5 -4 ------- Run | Yrd Mat Mat Min Exi Min Mat Fac Low Low Zio Dee Pro Fac Fac Ext Cet Arc Hub Fac Combat Hostiles Destroyed 166 | . 9 . 6 . 3 . 8 7 3 . 52 6 6 . 33 8 4 17 4 Melee 22 | . . . 4 . 2 . 2 . . . 7 2 2 . 3 . . . . Guns 36 | . 8 . . . . . . . . . . . . . 7 . 4 15 2 Cannons 8 | . . . . . . . 1 . . . 5 . . . 2 . . . . AOE 66 | . 1 . . . . . . 7 3 . 35 3 . . 13 1 . 1 2 Classes Destroyed 18 | 1 5 . . . 1 . 2 . 1 . 4 1 1 . 1 . . 1 . Worker 11 | . 1 . . . 1 1 2 . . . . . 2 1 1 . . 2 . Builder 9 | . 1 . . . . 1 1 . . . . . 1 . 2 . . 2 1 Tunneler 2 | 1 . . . . . . . . . . . . . . 1 . . . . Hauler 5 | . 1 . . . . 1 . . . . . . . . 2 . . 1 . Recycler 8 | . . . . . . . . . . . . . 2 . 6 . . . . Drone 1 | . . . . . . . . . . . . 1 . . . . . . . Watcher 6 | . . . . . . . . . . . . . . . 1 2 . 2 1 Swarmer 23 | . 3 . 6 . 2 . . 4 . . . 4 . . 4 . . . . Grunt 40 | . 6 . . . . . 2 3 2 . . . 3 . 17 . . 4 3 Brawler 1 | . . . . . . . . . . . . . . . . . . . 1 Duelist 2 | . . . . . . . . . 1 . . . . . 1 . . . . Sentry 18 | . . . . . . . 3 . . . . 1 2 . 5 . 4 3 . Specialist 2 | . . . . . . . . . . . . . . . . . . 2 . Hunter 9 | . . . . . 1 . 2 . . . . . . . 2 . . 4 . Programmer 8 | . . . . . . . 1 . . . . . 1 . 2 . . 4 . Cetus Guard 8 | . . . . . . . . . . . . . . . . 8 . . . Z-Technician 5 | . . . . . . . . . . . 5 . . . . . . . . Z-Light 8 | . . . . . . . . . . . 8 . . . . . . . . Assembled 44 | . . . . . . . . . . . 44 . . . . . . . . Thug 1 | . . . . . . . . . . . . . . . 1 . . . . Savage 1 | . . . . . . . . . . . 1 . . . . . . . . Butcher 1 | . . . . . . . . . . . . . . . 1 . . . . Guerrilla 1 | . . . . . . . . . . . . . . . 1 . . . . Best Kill Streak 13 | 1 5 . 3 . 3 2 2 3 3 . 13 5 5 1 13 5 3 7 5 Combat Bots Only 13 | . 5 . 3 . 2 . 2 3 3 . 13 5 2 . 13 4 3 6 3 Max Kills in Single Turn 10 | 1 1 . 1 . 1 1 1 2 2 . 4 3 1 1 10 3 1 2 1 Gunslinging . | . . . . . . . . . . . . . . . . . . . . Exploded 8 | . 1 . . . . . . 2 2 . 4 3 . . 8 1 . 1 1 Melee 1 | . . . 1 . 1 . 1 . . . 1 1 1 . 1 . . . . Uniques/NPCs Destroyed 1 | . . . . . . . . . . . 1 . . . . . . . . Z-Imprinter (-7/Deep Caves) Combat | -11 -10 -9 -9 -9 -8 -8 -7 -7 -7 -7 -7 -6 -6 -5 -5 -5 -5 -5 -4 -------- Run | Yrd Mat Mat Min Exi Min Mat Fac Low Low Zio Dee Pro Fac Fac Ext Cet Arc Hub Fac Hostile Shots Fired 1036 | . 69 1 18 . 20 15 205 36 48 . 123 24 99 . 109 43 20 156 50 Missed 328 | . 15 . 6 . 10 5 68 11 15 . 40 6 33 . 33 19 13 40 14 Hits 708 | . 54 1 12 . 10 10 137 25 33 . 83 18 66 . 76 24 7 116 36 Melee 5 | . . . . . . . . . 1 . 3 . . . 1 . . . . Projectile 703 | . 54 1 12 . 10 10 137 25 32 . 80 18 66 . 75 24 7 116 36 Critical Strikes 17 | . 1 . . . . 1 3 . . . . 1 1 . 2 3 . 4 1 Actively Blocked 1 | . . . . . . 1 . . . . . . . . . . . . . Part Disruptions 2 | . . . . . . . . 2 . . . . . . . . . . . Damage Taken 9721 | . 390 8 66 . 89 93 1149 663 454 . 1442 180 626 . 1681 479 162 1679 560 Core 1493 | . 90 . 15 . 40 17 174 30 109 . 245 8 198 . 236 16 4 174 137 Absorbed by Shields . | . . . . . . . . . . . . . . . . . . . . Redirected to Shielding 502 | . . . . . . 14 116 . . . 281 . 91 . . . . . . Ignored by Resistances 2880 | . 123 3 24 . 27 27 361 91 134 . 411 55 182 . 495 182 67 535 163 Regen/Repaired (Parts) 455 | . . . . . . . . . . 208 . . . 247 . . . . . Core Remaining (%) 71 | 100 64 . . . 86 96 . . . . . 19 76 . . . . 57 . Volleys Fired 282 | 1 29 . . . . . 11 13 8 . 43 1 2 5 60 6 16 70 17 Largest 3 | 2 2 . . . . . 1 1 2 . 1 1 1 1 2 2 2 3 3 Hottest 300 | 80 80 . . . . . 60 250 76 . 250 250 250 60 300 283 285 285 189 Shots Fired 429 | 2 54 . . . . . 13 15 10 . 43 1 2 5 67 10 20 157 30 Gun 282 | 2 54 . . . . . 1 . . . . . . 5 23 6 16 151 24 Cannon 92 | . . . . . . . 12 1 5 . 29 1 2 . 33 4 4 1 . Launcher 52 | . . . . . . . . 14 5 . 12 . . . 10 . . 5 6 Special 3 | . . . . . . . . . . . 2 . . . 1 . . . . Kinetic 222 | . . . . . . . . . 5 . . . . . 33 6 16 151 11 Thermal 125 | 1 29 . . . . . 12 1 . . 29 1 2 5 23 4 4 1 13 Explosive 54 | . . . . . . . . 14 5 . 14 . . . 10 . . 5 6 Electromagnetic 27 | 1 25 . . . . . 1 . . . . . . . . . . . . Robot Hit Streak 20 | 1 11 . . . . . 11 13 5 . 9 5 4 4 15 10 17 20 11 Robot Miss Streak 5 | 1 3 . . . . . 1 1 2 . 5 1 . 1 5 2 3 2 . Penetration Max 1 | . . . . . . . . . . . . . . . 1 1 1 1 . Secondary Targets 4 | . 1 . . . . . . . . . . . . . . . . 3 . Max Gunslinging Chain 1 | . 1 . . . . . . . . . . . . . . . . 1 . Shots Hit Robots 395 | 1 35 . 7 . 15 3 31 10 7 . 49 5 24 4 67 8 18 101 10 Core Hits 358 | 1 19 . 2 . 4 . 7 10 5 . 98 5 8 1 105 22 12 46 13 Critical Kills 14 | . . . . . 1 . . . . . . . . . 1 . 2 9 1 Critical Parts Destroyed 29 | . . . 3 . 2 1 1 . . . 1 . 7 . 3 1 . 9 1 Critical Strikes 48 | . . . 3 . 3 1 1 . . . 1 . 7 . 6 1 4 18 3 Burn 1 | . . . . . . . . . . . . . . . . . . . 1 Destroy 31 | . . . . . . . . . . . . . . . 6 1 4 18 2 Smash 16 | . . . 3 . 3 1 1 . . . 1 . 7 . . . . . . Melee Attacks 156 | . 4 . 8 . 15 7 34 1 . . 23 6 30 7 21 . . . . Impact 131 | . 4 . 8 . 15 7 34 1 . . 23 6 30 3 . . . . . Slashing . | . . . . . . . . . . . . . . . . . . . . Piercing 25 | . . . . . . . . . . . . . . 4 21 . . . . Sneak Attacks 14 | . 2 . 1 . 2 3 2 . . . . . 4 . . . . . . Combat Hostiles 2 | . . . 1 . 1 . . . . . . . . . . . . . . Follow-up Attacks . | . . . . . . . . . . . . . . . . . . . . Damage Inflicted 21947 | 91 583 . 259 . 456 161 1192 884 431 . 5975 375 1419 112 4252 961 634 3083 1079 Guns 4711 | 27 406 . . . . . . . . . . . . 112 719 165 396 2705 181 Cannons 1549 | . . . . . . . 282 . 53 . 355 39 . . 596 144 34 46 . Explosions 10951 | 64 74 . . . . . . 884 378 . 4686 121 169 . 2489 652 204 332 898 Melee 4695 | . 103 . 259 . 456 161 910 . . . 893 215 1250 . 448 . . . . Ramming . | . . . . . . . . . . . . . . . . . . . . Kinetic 4370 | . . . . . . . . . 53 . . . . . 918 165 396 2705 133 Thermal 8633 | 76 284 . . . . . 282 62 . . 3976 160 141 112 2226 796 238 162 118 Explosive 3997 | . . . . . . . . 822 378 . 1065 . 28 . 660 . . 216 828 Electromagnetic 211 | 15 196 . . . . . . . . . . . . . . . . . . Impact 4247 | . 103 . 259 . 456 161 910 . . . 893 215 1250 . . . . . . Slashing 41 | . . . . . . . . . . . 41 . . . . . . . . Piercing 448 | . . . . . . . . . . . . . . . 448 . . . . Highest Corruption 28 | . . . . . . . 16 28 28 28 . . 11 . . . . 5 . Average Corruption 16 | . . . . . . . 12 22 28 28 . . 11 . . . . 4 . Corruption Purged . | . . . . . . . . . . . . . . . . . . . . Corruption Blocked . | . . . . . . . . . . . . . . . . . . . . Effects 129 | . . . . . . . 28 39 29 4 . . 11 . . . . 18 . Message Errors 36 | . . . . . . . 8 12 10 1 . . 1 . . . . 4 . Matter Fused 32 | . . . . . . . 6 12 2 1 . . 5 . . . . 6 . Heat Flow Errors 13 | . . . . . . . 4 4 1 1 . . 1 . . . . 2 . Energy Discharges 16 | . . . . . . . 5 3 4 . . . 3 . . . . 1 . Parts Fused 2 | . . . . . . . . 2 . . . . . . . . . . . Data Loss (minor) 15 | . . . . . . . 1 3 8 . . . 1 . . . . 2 . Data Loss (major) 4 | . . . . . . . 2 1 1 . . . . . . . . . . Misfires 5 | . . . . . . . 2 2 . . . . . . . . . 1 . Alerts 3 | . . . . . . . . . 2 1 . . . . . . . . . Weapon Failures 3 | . . . . . . . . . 1 . . . . . . . . 2 . Overload Shots . | . . . . . . . . . . . . . . . . . . . . Overflow Damage 2352 | 1 26 . 134 . 135 117 279 49 . . 832 71 648 . 54 6 . . . Projectiles 11 | . . . . . . . 5 . . . . . . . . 6 . . . Explosions 714 | 1 . . . . . . . 49 . . 610 . . . 54 . . . . Melee 1627 | . 26 . 134 . 135 117 274 . . . 222 71 648 . . . . . . Knockbacks 14 | . . . . . . 1 4 . 1 . 3 . 5 . . . . . . Impact 13 | . . . . . . 1 4 . . . 3 . 5 . . . . . . Kinetic 1 | . . . . . . . . . 1 . . . . . . . . . . Secondary . | . . . . . . . . . . . . . . . . . . . . Self-Inflicted Damage 711 | . . . . . . . . 6 64 . 220 3 14 . 372 . 32 . . Shots 73 | . . . . . . . . 1 2 . 26 1 5 . 33 . 5 . . Rammed . | . . . . . . . . . . . . . . . . . . . . Targets Rammed . | . . . . . . . . . . . . . . . . . . . . Kicked . | . . . . . . . . . . . . . . . . . . . . Crushed . | . . . . . . . . . . . . . . . . . . . . Highest Temperature 532 | 18 174 3 . . . . 196 265 150 78 532 214 275 . 416 316 217 180 401 Average Temperature 135 | 12 81 3 . . . . 50 123 71 45 185 112 118 . 129 147 114 70 140 Received Heat Transfer 2468 | . 135 6 . . . 36 303 117 174 . 383 12 264 . 498 90 18 234 198 Effects 17 | . . . . . . . . . . . 14 . . . 2 1 . . . Shutdowns 2 | . . . . . . . . . . . . . . . 2 . . . . Energy Bleed 2 | . . . . . . . . . . . 2 . . . . . . . . Interference 10 | . . . . . . . . . . . 10 . . . . . . . . Damage (minor) 1 | . . . . . . . . . . . . . . . . 1 . . . Damage (major) 2 | . . . . . . . . . . . 2 . . . . . . . . Siege Activations . | . . . . . . . . . . . . . . . . . . . . Martial Activations . | . . . . . . . . . . . . . . . . . . . . Shielding Activations . | . . . . . . . . . . . . . . . . . . . . Robots Disrupted . | . . . . . . . . . . . . . . . . . . . . Combat Hostiles . | . . . . . . . . . . . . . . . . . . . . Robots Corrupted 20 | . . . 2 . 1 2 5 . . . 3 1 6 . . . . . . Combat Hostiles 16 | . . . 2 . 1 . 5 . . . 3 1 4 . . . . . . Parts Fried 31 | . 1 . 7 . 1 4 7 . . . . 2 9 . . . . . . Impact Corruptions 57 | . 1 . 5 . 5 5 9 . . . 9 3 20 . . . . . . Robots Melted 21 | . . . . . . . . . . . 2 . . . 11 7 . 1 . Combat Hostiles 16 | . . . . . . . . . . . 2 . . . 6 7 . 1 . Parts Melted 80 | . . . . . . . . 1 . . 11 3 1 . 35 18 3 8 . Heat Transferred 33533 | 75 575 . . . . . 407 320 . . 11760 800 800 148 12450 4000 1200 800 198 Parts Sabotaged . | . . . . . . . . . . . . . . . . . . . . Parts Stolen . | . . . . . . . . . . . . . . . . . . . . Parts Stripped . | . . . . . . . . . . . . . . . . . . . . Power Chain Reactions 2 | 1 1 . . . . . . . . . . . . . . . . . . Alert | -11 -10 -9 -9 -9 -8 -8 -7 -7 -7 -7 -7 -6 -6 -5 -5 -5 -5 -5 -4 ------- Run | Yrd Mat Mat Min Exi Min Mat Fac Low Low Zio Dee Pro Fac Fac Ext Cet Arc Hub Fac Maximum Alert Level 3 | . . . . . . . . . . . . . 3 1 1 . . 1 1 Low Security (%) 80 | 100 100 100 100 . 100 100 100 . . . . . . 33 86 100 100 97 43 Level 1 12 | . . . . . . . . . . . . . . 66 13 . . 2 56 Level 2 . | . . . . . . . . . . . . . . . . . . . . Level 3 6 | . . . . . . . . . . . . . 100 . . . . . . Level 4 . | . . . . . . . . . . . . . . . . . . . . Level 5 . | . . . . . . . . . . . . . . . . . . . . High Security . | . . . . . . . . . . . . . . . . . . . . Max Security . | . . . . . . . . . . . . . . . . . . . . Peak Influence 929 | 5 134 36 120 . 75 135 62 . . . . . 929 315 370 115 107 233 308 Initial 929 | . . 36 5 . . 24 44 . . . . . 929 315 50 34 23 19 93 Average 135 | . 73 25 52 . 30 77 15 . . . . . 850 224 93 79 76 73 206 Influence Increases 5371 | 5 253 11 140 . 105 161 398 190 70 . . 115 1168 44 1332 176 124 782 297 Destroy 0b10 Robot/C 2440 | . 180 . 120 . 60 . 160 140 60 . . 100 120 . 840 160 80 340 80 Destroy 0b10 Robot/NC 225 | 5 15 . . . 5 15 15 . . . . 5 25 5 80 10 . 35 10 Destroy Leader 444 | . 32 . 20 . 10 2 70 20 10 . . 10 40 . 122 . . 96 12 Allied During Kill 46 | . . . . . . . . . . . . . . . 46 . . . . Successful Hack 86 | . . 11 . . . . 33 . . . . . . 31 4 . . . 7 Disable Machine 351 | . 9 . . . . 9 9 . . . . . 45 . 36 . 36 63 144 Destroy Structure 444 | . 2 . . . . . 6 . . . . . 8 8 174 6 8 188 44 Advance Influence 900 | . . . . . . . . . . . . . 900 . . . . . . Partial Spotted 15 | . . . . . . . 15 . . . . . . . . . . . . Lose Combat Pursuer 420 | . 15 . . . 30 135 90 30 . . . . 30 . 30 . . 60 . Influence Decreases 5281 | 5 150 97 137 20 30 121 488 215 40 30 . 60 476 672 1379 178 127 626 430 Entered New Map 1053 | . . 67 12 20 . 51 71 12 . 30 . . 26 432 69 38 47 48 130 Time Decay 3525 | 5 120 30 85 . 20 70 417 193 40 . . 60 240 240 1024 120 80 511 270 Search Patrol Dispatched 100 | . . . . . . . . . . . . . 100 . . . . . . Lost Part 282 | . 30 . . . 10 . . 10 . . . . 50 . 65 20 . 67 30 Lost Ally 291 | . . . 40 . . . . . . . . . 60 . 191 . . . . Purge Threat 30 | . . . . . . . . . . . . . . . 30 . . . . Squads Dispatched 27 | . . 1 . . . 3 6 . . . . . 2 1 5 . . 8 1 Investigation 7 | . . . . . . . 3 . . . . . 2 . 1 . . 1 . Extermination 6 | . . . . . . . 2 . . . . . . 1 . . . 2 1 Reinforcement 13 | . . 1 . . . 3 1 . . . . . . . 4 . . 4 . Assault . | . . . . . . . . . . . . . . . . . . . . Garrison 1 | . . . . . . . . . . . . . . . . . . 1 . Intercept . | . . . . . . . . . . . . . . . . . . . . Searches Triggered 1 | . . . . . . . . . . . . . 1 . . . . . . Construction Impeded 4 | . . . . . . . . . . . . . . . 2 . . 2 . Haulers Reinforced 1 | . . . . . . . 1 . . . . . . . . . . . . Active Scanning Responses . | . . . . . . . . . . . . . . . . . . . . Cargo Convoy Interrupts . | . . . . . . . . . . . . . . . . . . . . Stealth | -11 -10 -9 -9 -9 -8 -8 -7 -7 -7 -7 -7 -6 -6 -5 -5 -5 -5 -5 -4 --------- Run | Yrd Mat Mat Min Exi Min Mat Fac Low Low Zio Dee Pro Fac Fac Ext Cet Arc Hub Fac Distress Signals 9 | . 1 . . . . 1 . . . . . 1 . . 2 2 . 1 1 Communications Jammed . | . . . . . . . . . . . . . . . . . . . . Distress Signals . | . . . . . . . . . . . . . . . . . . . . Times Spotted 289 | . 12 3 5 . 5 14 21 9 6 . 91 13 8 . 43 10 15 25 9 Peak Tracking Total 37 | . 4 2 3 . 4 7 5 4 3 . 37 4 3 . 10 5 1 5 5 Tactical Retreats 22 | . 1 . . . 1 4 3 2 . . 3 . 2 . 2 . . 4 . Traps | -11 -10 -9 -9 -9 -8 -8 -7 -7 -7 -7 -7 -6 -6 -5 -5 -5 -5 -5 -4 ------- Run | Yrd Mat Mat Min Exi Min Mat Fac Low Low Zio Dee Pro Fac Fac Ext Cet Arc Hub Fac Traps Triggered 14 | . . . . . . . 5 1 . . . . 1 . . . . 5 2 Indirectly . | . . . . . . . . . . . . . . . . . . . . Trap Hack Attempts . | . . . . . . . . . . . . . . . . . . . . Triggered . | . . . . . . . . . . . . . . . . . . . . Disarmed . | . . . . . . . . . . . . . . . . . . . . Reprogrammed . | . . . . . . . . . . . . . . . . . . . . Reused . | . . . . . . . . . . . . . . . . . . . . Traps Extracted . | . . . . . . . . . . . . . . . . . . . . Installed . | . . . . . . . . . . . . . . . . . . . . Triggered . | . . . . . . . . . . . . . . . . . . . . Machines | -11 -10 -9 -9 -9 -8 -8 -7 -7 -7 -7 -7 -6 -6 -5 -5 -5 -5 -5 -4 ---------- Run | Yrd Mat Mat Min Exi Min Mat Fac Low Low Zio Dee Pro Fac Fac Ext Cet Arc Hub Fac Machines Disabled 46 | . 1 . . . . 1 1 . . . 5 . 5 . 6 . 4 7 16 Max in Single Turn 15 | . 1 . . . . 1 1 . . . 1 . 4 . 1 . 1 1 15 Garrison Access 2 | . . . . . . . 1 . . . . . 1 . . . . . . Energy Cycler 1 | . . . . . . . . . . . . . . . 1 . . . . Machines Repaired . | . . . . . . . . . . . . . . . . . . . . Machines Dismantled . | . . . . . . . . . . . . . . . . . . . . Machines Sabotaged . | . . . . . . . . . . . . . . . . . . . . Overloaded Fab Kills . | . . . . . . . . . . . . . . . . . . . . Hacking | -11 -10 -9 -9 -9 -8 -8 -7 -7 -7 -7 -7 -6 -6 -5 -5 -5 -5 -5 -4 --------- Run | Yrd Mat Mat Min Exi Min Mat Fac Low Low Zio Dee Pro Fac Fac Ext Cet Arc Hub Fac Machines Accessed 38 | . . 2 . 1 . . 9 . . . . . 3 6 13 1 . 1 2 Terminals 25 | . . 2 . . . . 5 . . . . . 1 2 12 1 . 1 1 Fabricators 2 | . . . . . . . 1 . . . . . 1 . . . . . . Repair Stations 1 | . . . . . . . . . . . . . . 1 . . . . . Recycling Units 4 | . . . . . . . . . . . . . . 2 1 . . . 1 Scanalyzers 2 | . . . . . . . 1 . . . . . . 1 . . . . . Garrison Access 3 | . . . . . . . 2 . . . . . 1 . . . . . . Total Hacks 84 | . . 4 . 1 . . 24 . . . . . 5 15 25 3 . 3 4 Successful 41 | . . 3 . 1 . . 6 . . . . . 3 12 14 . . . 2 Failed 43 | . . 1 . . . . 18 . . . . . 2 3 11 3 . 3 2 Catastrophic 14 | . . 1 . . . . 6 . . . . . 1 . 1 3 . 2 . Database Lockouts . | . . . . . . . . . . . . . . . . . . . . Manual 36 | . . 3 . 1 . . 11 . . 4 . . 2 4 6 1 . 3 1 Terminals 54 | . . 4 . . . . 13 . . . . . 2 5 23 3 . 3 1 Fabricators 4 | . . . . . . . 2 . . . . . 2 . . . . . . Repair Stations 5 | . . . . . . . . . . . . . . 5 . . . . . Recycling Units 9 | . . . . . . . . . . . . . . 4 2 . . . 3 Scanalyzers 5 | . . . . . . . 4 . . . . . . 1 . . . . . Garrison Access 6 | . . . . . . . 5 . . . . . 1 . . . . . . Terminal Hacks 25 | . . 3 . 1 . . 4 . . . . . . 3 13 . . . 1 Open Door 5 | . . . . . . . . . . . . . . . 5 . . . . Branch Access Points 5 | . . 1 . . . . 1 . . . . . . 1 1 . . . 1 Alert Level 5 | . . 1 . . . . 1 . . . . . . . 3 . . . . Unreport Threat 1 | . . . . . . . . . . . . . . . 1 . . . . Locate Traps 1 | . . . . . . . . . . . . . . 1 . . . . . Dispatch Records 1 | . . . . . . . . . . . . . . . 1 . . . . Zone Layout 6 | . . 1 . . . . 2 . . . . . . 1 2 . . . . Proto ID Catalog 1 | . . . . 1 . . . . . . . . . . . . . . . Fabricator Hacks 2 | . . . . . . . . . . . . . 2 . . . . . . Load Schematic 1 | . . . . . . . . . . . . . 1 . . . . . . Build 1 | . . . . . . . . . . . . . 1 . . . . . . Repair Station Hacks 5 | . . . . . . . . . . . . . . 5 . . . . . Scan Component 2 | . . . . . . . . . . . . . . 2 . . . . . Repair 2 | . . . . . . . . . . . . . . 2 . . . . . Refit 1 | . . . . . . . . . . . . . . 1 . . . . . Recycling Unit Hacks 5 | . . . . . . . . . . . . . . 3 1 . . . 1 Report Inventory 5 | . . . . . . . . . . . . . . 3 1 . . . 1 Scanalyzer 2 | . . . . . . . 1 . . . . . . 1 . . . . . Retrieve Study 2 | . . . . . . . 1 . . . . . . 1 . . . . . Garrison Access Hacks 2 | . . . . . . . 1 . . . . . 1 . . . . . . Seal Access 2 | . . . . . . . 1 . . . . . 1 . . . . . . Unauthorized Hacks . | . . . . . . . . . . . . . . . . . . . . Terminals . | . . . . . . . . . . . . . . . . . . . . Fabricators . | . . . . . . . . . . . . . . . . . . . . Repair Stations . | . . . . . . . . . . . . . . . . . . . . Recycling Units . | . . . . . . . . . . . . . . . . . . . . Scanalyzers . | . . . . . . . . . . . . . . . . . . . . Garrison Access . | . . . . . . . . . . . . . . . . . . . . Data Cores Recovered 1 | . . . . . . . . . . . . . . . 1 . . . . Used . | . . . . . . . . . . . . . . . . . . . . Hacking Detections 27 | . . 2 . . . . 9 . . . . . 2 4 7 1 . 1 1 Full Trace Events 5 | . . . . . . . 3 . . . . . 1 . . . . 1 . Feedback Events . | . . . . . . . . . . . . . . . . . . . . Feedback Blocked . | . . . . . . . . . . . . . . . . . . . . Robot Schematics Acquired 2 | . . . . . . . . . . 2 . . . . . . . . . Robots Built 3 | . . . . . . . . . . . . . 3 . . . . . . Authchips . | . . . . . . . . . . . . . . . . . . . . Time 99 | . . . . . . . . . . . . . 99 . . . . . . Total Robot Build Rating 6 | . . . . . . . . . . . . . 6 . . . . . . Part Schematics Acquired 15 | . . . . . . . . . . 15 . . . . . . . . . Parts Built . | . . . . . . . . . . . . . . . . . . . . Authchips . | . . . . . . . . . . . . . . . . . . . . Time . | . . . . . . . . . . . . . . . . . . . . Total Part Build Rating . | . . . . . . . . . . . . . . . . . . . . Part Studies Acquired 2 | . . . . . . . 1 . . . . . . 1 . . . . . Parts Repaired 2 | . . . . . . . . . . . . . . 2 . . . . . Time 100 | . . . . . . . . . . . . . . 100 . . . . . Parts Recycled . | . . . . . . . . . . . . . . . . . . . . Recycled Matter . | . . . . . . . . . . . . . . . . . . . . Retrieved Matter . | . . . . . . . . . . . . . . . . . . . . Retrieved Components . | . . . . . . . . . . . . . . . . . . . . Parts Scanalyzed . | . . . . . . . . . . . . . . . . . . . . Part Schematics Acquired . | . . . . . . . . . . . . . . . . . . . . Parts Damaged . | . . . . . . . . . . . . . . . . . . . . Bothacking | -11 -10 -9 -9 -9 -8 -8 -7 -7 -7 -7 -7 -6 -6 -5 -5 -5 -5 -5 -4 ------------ Run | Yrd Mat Mat Min Exi Min Mat Fac Low Low Zio Dee Pro Fac Fac Ext Cet Arc Hub Fac Used RIF Installer . | . . . . . . . . . . . . . . . . . . . . Robots Hacked 1 | . . . . . . . . . . . . . . . 1 . . . . Non-combat 1 | . . . . . . . . . . . . . . . 1 . . . . Combat . | . . . . . . . . . . . . . . . . . . . . Robot Hacks Applied 1 | . . . . . . . . . . . . . . . 1 . . . . parse_system 1 | . . . . . . . . . . . . . . . 1 . . . . Relay Couplers Released . | . . . . . . . . . . . . . . . . . . . . Fabnet Peak Effective % . | . . . . . . . . . . . . . . . . . . . . Robots Rewired 4 | . . . . . . . . . . . . . . . 4 . . . . Allies Hacked 1 | . . . . . . . . . . . . . . . 1 . . . . Hacks Repelled . | . . . . . . . . . . . . . . . . . . . . Allies | -11 -10 -9 -9 -9 -8 -8 -7 -7 -7 -7 -7 -6 -6 -5 -5 -5 -5 -5 -4 -------- Run | Yrd Mat Mat Min Exi Min Mat Fac Low Low Zio Dee Pro Fac Fac Ext Cet Arc Hub Fac Total Allies 25 | . . . 3 . . . . . . 6 . . 3 . 13 . . . . Largest Group 8 | . . . 3 1 . . . . . 6 6 . 3 . 8 . . . . Highest-Rated Group 244 | . . . 40 8 . . . . . 149 149 . 30 . 244 . . . . Highest-Rated Ally 39 | . . . 16 8 . . . . . 31 31 . 10 . 39 . . . . Total Orders . | . . . . . . . . . . . . . . . . . . . . Ally Attacks 113 | . . . 10 . . . . . . . 26 . 5 . 72 . . . . Total Damage 1920 | . . . 46 . . . . . . . 243 . 115 . 1516 . . . . Kills 12 | . . . . . . . . . . . 1 . . . 11 . . . . Allies Corrupted . | . . . . . . . . . . . . . . . . . . . . Allies Melted . | . . . . . . . . . . . . . . . . . . . . Intel | -11 -10 -9 -9 -9 -8 -8 -7 -7 -7 -7 -7 -6 -6 -5 -5 -5 -5 -5 -4 ------- Run | Yrd Mat Mat Min Exi Min Mat Fac Low Low Zio Dee Pro Fac Fac Ext Cet Arc Hub Fac Active Infowar (turns) 5030 | 13 163 9 187 166 94 72 85 797 579 664 671 . 2 . 570 . . 418 540 Sensors 3896 | . . 9 187 166 94 72 85 797 579 664 671 . 2 . 570 . . . . IFF 229 | . . . . . . . . . . . . . . . . . . . 229 Terrain 374 | . . . . . . . . 374 . . . . . . . . . . . Structural 958 | . . . . . . . . . . . . . . . . . . 418 540 Seismic 176 | 13 163 . . . . . . . . . . . . . . . . . . Robot Analysis Total . | . . . . . . . . . . . . . . . . . . . . Derelict Logs Recovered 5 | . . . 2 . . . . . 2 1 . . . . . . . . . Drone Launches . | . . . . . . . . . . . . . . . . . . . . Drone Recoveries . | . . . . . . . . . . . . . . . . . . . . Exploration | -11 -10 -9 -9 -9 -8 -8 -7 -7 -7 -7 -7 -6 -6 -5 -5 -5 -5 -5 -4 ------------- Run | Yrd Mat Mat Min Exi Min Mat Fac Low Low Zio Dee Pro Fac Fac Ext Cet Arc Hub Fac Turns Passed 11264 | 93 286 69 187 166 94 147 1312 872 628 754 982 163 483 482 2373 241 179 1208 545 Spaces Moved 7688 | 66 139 86 258 222 63 166 839 296 188 1070 1148 188 364 315 1179 173 86 569 273 Core 75 | 2 . 2 . . . . . . 2 . . . . . . . . . 69 Treads 804 | . . . . . . . 375 296 133 . . . . . . . . . . Legs 2324 | 64 139 14 . . . . . . . . . . . . 1075 173 86 569 204 Wheels 320 | . . . . . . . . . . . . . . 216 104 . . . . Hover 3878 | . . . 41 222 63 166 464 . 53 1070 1148 188 364 99 . . . . . Flight 287 | . . 70 217 . . . . . . . . . . . . . . . . Fastest Speed 31 | 50 120 31 31 74 74 65 65 160 66 59 53 74 77 77 115 120 120 120 120 Average Speed 106 | 117 120 54 38 74 74 69 120 261 303 60 58 75 79 99 127 120 155 138 165 Slowest Speed 400 | 120 120 280 150 74 74 74 400 400 400 66 147 77 147 115 260 120 190 400 260 Overloaded Moves . | . . . . . . . . . . . . . . . . . . . . Propulsion Burnouts . | . . . . . . . . . . . . . . . . . . . . Robots Hopped . | . . . . . . . . . . . . . . . . . . . . Potential Cave-ins 8 | . . . . . . . . . . . . . . . 8 . . . . Cave-ins Triggered 1 | . . . . . . . . 1 . . . . . . . . . . . Exploration Rate (%) 41 | 5 35 13 49 61 18 27 24 55 39 86 74 42 11 11 81 65 75 59 7 Regions Visited 19 Branch Regions 12 Pre-discovered Areas 2 | . . . 1 . . . . . . 1 . . . . . . . . . Known Exits Taken 14 | . . 1 . . . 1 1 1 1 1 1 1 1 1 1 1 1 1 . Unknown Exits Taken 5 | 1 1 . 1 1 1 . . . . . . . . . . . . . . Scrap Searched 6 | . . . 1 . . . . 2 1 2 . . . . . . . . . Spaces Dug 95 | . . . . . . . 7 6 . . 3 . 2 4 60 . . 8 5 Terrain Destroyed 620 | 7 2 . . . . . 7 101 42 . 86 . 7 4 198 . 4 117 45 Melee 19 | . . . . . . . 7 1 . . 3 . 2 4 2 . . . . Projectile 66 | . . . . . . . . . . . . . . . 9 . 4 45 8 AOE 535 | 7 2 . . . . . . 100 42 . 83 . 5 . 187 . . 72 37 Terrain Rammed . | . . . . . . . . . . . . . . . . . . . . Walls Destroyed . | . . . . . . . . . . . . . . . . . . . . Machines Disabled . | . . . . . . . . . . . . . . . . . . . . Actions | -11 -10 -9 -9 -9 -8 -8 -7 -7 -7 -7 -7 -6 -6 -5 -5 -5 -5 -5 -4 --------- Run | Yrd Mat Mat Min Exi Min Mat Fac Low Low Zio Dee Pro Fac Fac Ext Cet Arc Hub Fac Total 10070 | 76 196 107 332 224 83 184 1079 382 230 1173 1383 200 509 465 1948 196 118 840 345 Wait 1612 | . 12 9 58 . 6 . 163 58 25 92 143 2 105 123 607 8 5 163 33 Move 7669 | 65 138 85 257 221 62 165 838 295 187 1069 1147 187 363 314 1178 172 85 568 273 Hop . | . . . . . . . . . . . . . . . . . . . . Pick Up 52 | 3 7 1 2 1 . 3 5 1 1 1 6 . . 2 8 1 3 4 3 Fast Attach 112 | 6 2 4 3 . . 2 9 3 6 6 8 . 4 8 22 3 . 21 5 Attach 39 | 1 1 3 . . . 2 2 5 2 1 5 2 2 2 6 1 . 2 2 Detach 20 | . . . . . . . 4 4 . . . 2 2 3 5 . . . . Swap 25 | . 1 1 . . . 2 4 . . . 1 . . . 7 2 3 4 . Drop 80 | . 2 4 4 2 . 3 5 2 1 4 7 . 1 1 15 3 6 8 12 Fire 282 | 1 29 . . . . . 11 13 8 . 43 1 2 5 60 6 16 70 17 Melee 156 | . 4 . 8 . 15 7 34 1 . . 23 6 30 7 21 . . . . Ram . | . . . . . . . . . . . . . . . . . . . . Kick . | . . . . . . . . . . . . . . . . . . . . Crush . | . . . . . . . . . . . . . . . . . . . . Escape Stasis 4 | . . . . . . . 4 . . . . . . . . . . . . Rewire 19 | . . . . . . . . . . . . . . . 19 . . . . Trap . | . . . . . . . . . . . . . . . . . . . . Miscellaneous . | . . . . . . . . . . . . . . . . . . . . Route ------- -11/Scrapyard -10/Materials -9/Materials (discovered 3 exits: *Min x2 / Sto) -9/Mines -9/Exiles -8/Mines -8/Materials -7/Factory (discovered 3 exits: *Fac / *Low x2) -7/Lower Caves -7/Lower Caves -7/Zion (discovered 2 exits: *Dee / [*Pro]) -7/Deep Caves -6/Proximity Caves -6/Factory (discovered 3 exits: *Fac x2 / *Low) -5/Factory (discovered 4 exits: Upp x2 / *Ext x2) -5/Extension (discovered 3 exits: *Fac x2 / *Cet) -5/Cetus (discovered 2 exits: *Fac / *Arc) -5/Archives (discovered 3 exits: *Fac / *Hub x2) -5/Hub_04(d) -4/Factory (discovered 4 exits: [*Res] / Upp x2 / Arm) History --------- Turn | Location | Event 20 | -11/Scrapyard | Discovered new exit (range 16) 94 | -11/Scrapyard | Entered Materials 308 | -10/Materials | Lost 3 parts (1p1u1w) 336 | -10/Materials | Build established: Mutant 355 | -10/Materials | Discovered new exit (range 16) 380 | -10/Materials | Entered another Materials area 380 | -9/Materials | Evolved 2 slots: Propulsion x2 431 | -9/Materials | Identified exit to Mines 431 | -9/Materials | Identified exit to Storage 449 | -9/Materials | Entered Mines 465 | -9/Mines | Learned 8 Materials zone layouts 502 | -9/Mines | Learned location of Zion (-7) 503 | -9/Mines | Assembled infested the area 529 | -9/Mines | Met 8R-AWN 538 | -9/Mines | Assisted by bots powering up and referring to "LRC-V3" 610 | -9/Mines | Discovered new exit (range 5) 636 | -9/Mines | Entered Exiles 636 | -9/Exiles | Accompanied by 1 ally 656 | -9/Exiles | Welcomed by 8R-AWN 666 | -9/Exiles | Met EX-HEX 689 | -9/Exiles | Met EX-BIN 701 | -9/Exiles | Aligned with FarCom system 702 | -9/Exiles | Given EX-Vault access code 719 | -9/Exiles | Opened EX-Vault 728 | -9/Exiles | Found Firepult 745 | -9/Exiles | Warned to stay clear of 0b10 Research branches 764 | -9/Exiles | Met EX-DEC 792 | -9/Exiles | Discovered new exit (range 14) 802 | -9/Exiles | Left Exiles lab with Firepult 802 | -9/Exiles | Entered Mines 835 | -8/Mines | Discovered new exit (range 15) 896 | -8/Mines | Entered Materials 896 | -8/Materials | Evolved 2 slots: Utility x2 1032 | -8/Materials | Discovered new exit (range 16) 1041 | -8/Materials | Identified exit to Factory 1043 | -8/Materials | Entered Factory 1043 | -7/Factory | Evolved 2 slots: Propulsion x1, Utility x1 1096 | -7/Factory | Build established: Scout 1567 | -7/Factory | Identified exit to Lower Caves 1702 | -7/Factory | Build established: Assassin 2036 | -7/Factory | System corruption reached 10% 2137 | -7/Factory | Discovered new exit (range 8) 2292 | -7/Factory | Build established: Scavenger-Assassin 2355 | -7/Factory | Entered Lower Caves 2738 | -7/Lower Caves | Found Alien Artifact 2738 | -7/Lower Caves | Identified Core Expander 2738 | -7/Lower Caves | Installed Core Expander, added new Weapon slot 2754 | -7/Lower Caves | Crushed by falling debris 2785 | -7/Lower Caves | Lost 4 parts (2n2u) 2850 | -7/Lower Caves | Build established: Mutant 3167 | -7/Lower Caves | Discovered new exit (range 11) 3211 | -7/Lower Caves | Identified exit to Lower Caves 3227 | -7/Lower Caves | Entered another Lower Caves area 3367 | -7/Lower Caves | Learned location of 1 exit from Factory 3409 | -7/Lower Caves | Learned 8 Factory zone layouts 3418 | -7/Lower Caves | Encountered a Warlord checkpoint 3535 | -7/Lower Caves | Attracted the attention of an 0b10 checkpoint 3816 | -7/Lower Caves | Lost 3 parts (1n1u1w) 3847 | -7/Lower Caves | Discovered new exit (range 13) 3854 | -7/Lower Caves | Identified exit to Zion 3855 | -7/Lower Caves | Entered Zion 3911 | -7/Zion | System corruption cleaned by Quarantine Array 3973 | -7/Zion | Discovered new exit (range 8) 4054 | -7/Zion | Found Prototype Special Weapon 4054 | -7/Zion | Identified RU-N14's Throwing Claymores 4111 | -7/Zion | Acquired unknown access codes intercepted by a Zionite 4130 | -7/Zion | Learned location of Extension (-5) 4165 | -7/Zion | Found GAL Module 4200 | -7/Zion | Gained Derelict followers 4223 | -7/Zion | Visited the Megawrench Repair Shop 4223 | -7/Zion | Megawrench repaired 9 parts 4246 | -7/Zion | Rebuked by Imprinter 4350 | -7/Zion | Given the Hacking Drone Bay 4352 | -7/Zion | Found Prototype Device 4352 | -7/Zion | Identified Hacking Drone Bay 4451 | -7/Zion | Found RU-N14's Throwing Claymores 4505 | -7/Zion | Opened final containment barrier to the Deep Caves 4514 | -7/Zion | Discovered new exit (range 5) 4515 | -7/Zion | Saw the warning signs outside the Deep Caves entrance 4517 | -7/Zion | Identified exit to Deep Caves 4609 | -7/Zion | Entered Deep Caves 4609 | -7/Deep Caves | Accompanied by 6 allies 4666 | -7/Deep Caves | Z-Facility disabled 4679 | -7/Deep Caves | Attacked by Z-Imprinter 4697 | -7/Deep Caves | Allies destroyed Z-Imprinter 4726 | -7/Deep Caves | Lost 5 allies 4780 | -7/Deep Caves | Core integrity fell below 50% 4815 | -7/Deep Caves | Lost 3 parts (1p1n1w) 4826 | -7/Deep Caves | Found Prototype Protection 5010 | -7/Deep Caves | Identified Zio. Weapon Casing 5108 | -7/Deep Caves | Found Zio. Weapon Casing 5120 | -7/Deep Caves | Found Prototype Protection 5270 | -7/Deep Caves | Discovered new exit (range 6) 5273 | -7/Deep Caves | Identified exit to Proximity Caves 5291 | -7/Deep Caves | Triggered Deep Caves wall 5291 | -7/Deep Caves | Spotted AS-34273 5291 | -7/Deep Caves | Spotted AS-31932 5291 | -7/Deep Caves | Spotted AG-23558 5379 | -7/Deep Caves | Destroyed 9 combat bots 5405 | -7/Deep Caves | Found Zio. Weapon Casing 5547 | -7/Deep Caves | Destroyed 13 combat bots 5591 | -7/Deep Caves | Entered Proximity Caves 5594 | -6/Proximity Caves | Spotter reported a threat 5596 | -6/Proximity Caves | Spotter reported a threat 5598 | -6/Proximity Caves | Identified Zio. Heavy Carapace 5610 | -6/Proximity Caves | Destroyed 10 combat bots 5638 | -6/Proximity Caves | Attracted the attention of an 0b10 checkpoint 5641 | -6/Proximity Caves | Core integrity fell below 20% 5647 | -6/Proximity Caves | Spotter reported a threat 5649 | -6/Proximity Caves | Spotter reported a threat 5677 | -6/Proximity Caves | Build established: Scavenger-Mutant 5702 | -6/Proximity Caves | Spotter reported a threat 5711 | -6/Proximity Caves | Spotter reported a threat 5748 | -6/Proximity Caves | Discovered new exit (range 10) 5753 | -6/Proximity Caves | Identified exit to Factory 5754 | -6/Proximity Caves | Entered Factory 5754 | -6/Factory | Evolved 2 slots: Power x1, Utility x1 5755 | -6/Factory | Identified exit to Factory 5774 | -6/Factory | Discovered new exit (range 15) 5785 | -6/Factory | Identified exit to Lower Caves 5901 | -6/Factory | Fabricated B-36 Bruiser? 5924 | -6/Factory | System corruption reached 10% 5942 | -6/Factory | Found Prototype Launcher 5942 | -6/Factory | Identified Scatter Rocket Array 6104 | -6/Factory | Search patrols dispatched 6200 | -6/Factory | Discovered exit to Factory (range 7) 6237 | -6/Factory | Entered another Factory area 6237 | -5/Factory | Evolved 2 slots: Propulsion x1, Utility x1 6361 | -5/Factory | Identified exit to Upper Caves 6361 | -5/Factory | Identified exit to Extension 6624 | -5/Factory | Repaired Cmb. Airjet+ 6675 | -5/Factory | Repaired Cmb. Airjet+ 6719 | -5/Factory | Entered Extension 6757 | -5/Extension | Rescued a captive Derelict 6758 | -5/Extension | Rescued a captive Derelict 6910 | -5/Extension | Rescued a captive Derelict 6916 | -5/Extension | Rescued a captive Derelict 6971 | -5/Extension | Build established: Hacker-Assassin 7022 | -5/Extension | Identified exit to Cetus 7050 | -5/Extension | Rescued a captive Derelict 7051 | -5/Extension | Rescued a captive Derelict 7230 | -5/Extension | Lost 4 allies 7291 | -5/Extension | Lost 4 allies 7318 | -5/Extension | Spotted B-75 Beast 7547 | -5/Extension | Rescued a captive Derelict 7547 | -5/Extension | Rescued a captive Derelict 7673 | -5/Extension | Build established: Hacker-Skirmisher 7703 | -5/Extension | Rescued a captive Derelict 7919 | -5/Extension | Disrupted transfer network 8010 | -5/Extension | Energy Cycler disabled 8015 | -5/Extension | Rescued a captive Derelict 8017 | -5/Extension | Rescued a captive Derelict 8024 | -5/Extension | Rescued a captive Derelict 8065 | -5/Extension | Destroyed 13 combat bots 8192 | -5/Extension | Discovered new exit (range 10) 8653 | -5/Extension | Identified exit to Factory 8870 | -5/Extension | Discovered exit to Factory (range 14) 8871 | -5/Extension | Extracted ID and sensor layout for unrecognized location from A7's data core 9056 | -5/Extension | Build established: Scavenger-Skirmisher 9092 | -5/Extension | Entered Cetus 9109 | -5/Cetus | Spotted Cetus Guard 9112 | -5/Cetus | Spotted Cetus Guard 9113 | -5/Cetus | Spotted Cetus Guard 9113 | -5/Cetus | Spotted Cetus Guard 9118 | -5/Cetus | Destroyed Cetus Guard 9124 | -5/Cetus | Destroyed Cetus Guard 9124 | -5/Cetus | Destroyed Cetus Guard 9125 | -5/Cetus | Destroyed Cetus Guard 9215 | -5/Cetus | Discovered new exit (range 15) 9236 | -5/Cetus | Spotted Cetus Guard 9237 | -5/Cetus | Spotted Cetus Guard 9239 | -5/Cetus | Spotted Cetus Guard 9240 | -5/Cetus | Spotted Cetus Guard 9249 | -5/Cetus | Destroyed Cetus Guard 9249 | -5/Cetus | Destroyed Cetus Guard 9249 | -5/Cetus | Destroyed Cetus Guard 9250 | -5/Cetus | Destroyed Cetus Guard 9259 | -5/Cetus | Discovered exit to Factory (range 15) 9265 | -5/Cetus | Met Revision 17 9332 | -5/Cetus | Identified exit to Archives 9333 | -5/Cetus | Entered Archives 9397 | -5/Archives | Unable to access archive contents 9400 | -5/Archives | Discovered new exit (range 15) 9456 | -5/Archives | Build established: Scavenger-Tank 9463 | -5/Archives | Discovered exit to Factory (range 16) 9488 | -5/Archives | Discovered new exit (range 14) 9510 | -5/Archives | Identified exit to Hub_04(d) 9512 | -5/Archives | Entered Hub_04(d) 9928 | -5/Hub_04(d) | Build established: Scavenger-Mutant 10100 | -5/Hub_04(d) | Lost 3 parts (3n) 10255 | -5/Hub_04(d) | Lost 3 parts (2n1u) 10354 | -5/Hub_04(d) | Lost 3 parts (1p2u) 10453 | -5/Hub_04(d) | Discovered exit to Factory (range 15) 10504 | -5/Hub_04(d) | Build established: Scavenger-Skirmisher 10702 | -5/Hub_04(d) | Garrison activated, responded to threat 10720 | -5/Hub_04(d) | Entered Factory 10720 | -4/Factory | Evolved 2 slots: Utility x2 10734 | -4/Factory | Identified exit to Upper Caves 10734 | -4/Factory | Identified exit to Armory 10813 | -4/Factory | Lost 3 parts (1p1u1w) 10966 | -4/Factory | Discovered new exit (range 6) 11265 | -4/Factory | Self-destructed Last Messages --------------- 11122_ Adv. Heat Sink severed. 11125_ Triggered Blade Trap. 11125_ Massive razor-sharp blades shoot up from within the floor. 11125_ Particle Reactor severed. 11125_ Arm. Leg severed. 11125_ Maul severed. 11161_ U-05 Engineer lays Concrete. 11169_ Connecting with Recycling Unit... >>Recycling(Report) Matter reserves: 0 Inventory: Linear Accelerator (69%) Adv. Recalibrator (42%) Mic. Antimatter Reactor (54%) 11186_ K-01 Serf cleans the Recycling Unit. 11247_ ALERT: Potential suspicious activity detected, Programmers report to Factory Zone 9S. 11258_ Terminal disabled. Map ----- +----------------------------------------------------+ | ????????????????????????????????????????????? | | ????????????????????????????????????????????? | | ????????????????????????????????????????????? | | ????????????????????????????????????????????? | | ????????????????????????????????????????????? | | ????????????????????????????????????????????? | | ????????????????????????????????????????????? | | ????????????????????????????????????????????? | | ????????????????????????????????????????????? | | ????????????????????????????????????????????? | | ????????????????????????????????????????????? | | ????????????????????????????????????????????? | | ????????????????????????????????????????????? | | ????????????????????????????????????????????? | | ????????????????????????????????????????????? | | ????????????????????????????????????????????? | | ????????????????????????????????????????????? | | ????????????????????????????????????????????? | | ????????????????????????????????????????????? | | ????????????????????????????????????????????? | | ????????????????????????????????????????????? | | ???????????################?????????????????? | | ???????????################?????????????????? | | ???????????## ##?????????????????? | | ???????????## ##?????????????????? | | ???????????## @ ##?????????????????? | | ???????????## """ """ ##?????????????????? | | ???????????## """ """ p ##?????????????????? | | ???????????## """ """ p ##?????????????????? | | ???????????## "##?????????????????? | | ???????????## """ """ ""##?????????????????? | | ???????????## """ """ T"##?????????????????? | | ???????????## """ """ ""##?????????????????? | | ???????????## ""##?????????????????? | | ?############ ! ###"???????????????? | | ###################+########"" "????????????? | | ## # ??????????? | | ## # ??????????? | | ## # ??????????? | | ## ?""" """ """ # ???????????? | | ????????""" """ + ??????????? | | ????""" """ """ # ?? ??????? | | ????###########+# "?????? | | ???? # ?? | | ????"" """ # ! | | ?????" """ # = | | ?????" """ # | | ?????? # | | ?????? # # | | ??????? ? # | +----------------------------------------------------+ Best States ------------- Heat Dissipation 74 Energy Generation 43 Energy Capacity 590 Matter Stores 300 Matter Capacity 300 Sight Range 16 Robot Scan Range 15 Terrain Scan Range 16 Terrain Scan Density 210 Armor Coverage 1200 Resistance: KI 20 Resistance: TH 35 Resistance: EX 20 Resistance: EM 20 Resistance: I 20 Resistance: S 20 Resistance: P 20 Propulsion Shielding 33 Weapon Shielding 100 Point Defense Rating 80 Phase Shifting 5 Evasion (%) 70 Target Analysis 6 Recoil Reduction 5 Offensive Hacking 22 Defensive Hacking 28 Item Schematics ----------------- Imp. Field Recycling Unit | -7/Zion | Archive Hvy. Plasma Cannon | -7/Zion | Archive Imp. Medium Treads | -7/Zion | Archive Force Booster | -7/Zion | Archive Matter Compressor | -7/Zion | Archive Med. Treads | -7/Zion | Archive Force Field | -7/Zion | Archive Recalibrator | -7/Zion | Archive Imp. Trap Scanner | -7/Zion | Archive Armor Integrity Analyzer | -7/Zion | Archive Adv. System Shield | -7/Zion | Archive Imp. Remote Datajack | -7/Zion | Archive Imp. Titanium Leg | -7/Zion | Archive Imp. Carbon-fiber Leg | -7/Zion | Archive Lgt. Angular Momentum Engine | -7/Zion | Archive Robot Schematics ------------------ R-06 Scavenger | -7/Zion | Archive B-36 Bruiser | -7/Zion | Archive Fabricated ------------ B-36 Bruiser | x3 | -6/Factory Repaired ---------- Cmb. Airjet | 6% | -5/Factory Cmb. Airjet | 3% | -5/Factory Studied --------- Cmb. Airjet | -7/Factory | Hacked Hvy. Flail | -5/Factory | Hacked Alien Tech Used ----------------- Core Expander Achievements -------------- None Challenges ------------ None Game ------ Seed PlatingCentriumSlayer Manual? 0 Play Time 01:34:23 Cumulative 241.3 hours Start 2025.12.21 @ 15:18:57 End 2025.12.21 @ 19:00:38 Sessions 3 Manual Loads 0 Difficulty Adventurer Special Mode None Game No. 185 Rogue 10 Adventurer 175 Explorer 0 Win Type - Total 16 Types 7/0/6/3/0/0/0/0/0/0 Lore% 74 Gallery% 71 Achievement% 55 Wizard Run 0 Options --------- Layout 1 ASCII 0 Keyboard 0 Movement Mouse Keybinds 0 Fullscreen 1 Font 24/Smallcaps Map View 50x35 Zoom Use 0% Tactical HUD 1 Map Filters NONE Filters NONE Steam 1 RUN: cdf9ebbb-8331-441d-8cf0-31cb703cee8b